lending/lending_fUSD_20251124
["ID","MTS","AMOUNT","RATE_DAILY","PERIOD"]
[394862584,1764025846367,-209.35924934,0.00039,2]
[394862585,1764025846376,-9545.03673408,0.00041798,30]
[394862586,1764025846489,-545.62923474,0.00041798,30]
[394862588,1764025846642,-1380.67734326,0.00041798,30]
[394862591,1764025847397,-1.3832261,0.00026768,2]
[394862592,1764025847427,-625.6487535,0.00026768,2]
[394862594,1764025853992,10000.01,0.000151,2]
[394862595,1764025854026,10000.01,0.000151,2]
[394862596,1764025854056,10000.01,0.000151,2]
[394862597,1764025854087,10000.01,0.000151,2]
[394862598,1764025854115,10000.01,0.000151,2]
[394862599,1764025854144,10000.01,0.000151,2]
[394862600,1764025854176,10000.01,0.000151,2]
[394862601,1764025854204,10000.01,0.000151,2]
[394862602,1764025854233,10000.01,0.000151,2]
[394862603,1764025854262,10000.01,0.000151,2]
[394862607,1764025866712,-300.0,0.00015099,2]
[394862608,1764025866739,-94.43930456,0.000151,2]
[394862609,1764025878282,-10000.01,0.000151,2]
[394862610,1764025878418,-10000.01,0.000151,2]
[394862611,1764025881042,-10000.01,0.000151,2]
[394862612,1764025881173,-10000.01,0.000151,2]
[394862613,1764025884275,-10000.01,0.000151,2]
[394862614,1764025884398,-10000.01,0.000151,2]
[394862616,1764025907414,164.06876657,0.00014698,2]
[394862617,1764025910069,-1200.0,0.00014798,2]
[394862620,1764025917671,-1077.778,0.00014798,2]
[394862621,1764025917703,-192.277,0.00014798,2]
[394862627,1764025928220,2891.885681,7.945e-05,2]
[394862628,1764025948068,-2544.318666,0.00014925,2]
[394862629,1764025948112,-1855.41822043,0.00014925,2]
[394862630,1764025948257,-3055.95444757,0.00014925,2]
[394862631,1764025948287,-197.29061091,0.00015,2]
[394862632,1764025948318,-158.57656667,0.00015,2]
[394862633,1764025948348,-195.0,0.0001505,2]
[394862634,1764025948379,-300.0,0.00015099,2]
[394862635,1764025948410,-300.0,0.00015099,2]
[394862636,1764025948541,-1586.3667497,0.000151,2]
[394862637,1764025948576,-10000.01,0.000151,2]
[394862638,1764025948592,-10000.01,0.000151,2]
[394862639,1764025948638,-10000.01,0.000151,2]
[394862640,1764025948749,-10000.01,0.000151,2]
[394862641,1764025948872,-10000.01,0.000151,2]
[394862642,1764025948991,-10000.01,0.000151,2]
[394862643,1764025949113,-10000.01,0.000151,2]
[394862644,1764025950975,-10000.01,0.000151,2]
[394862645,1764025954019,-10000.01,0.000151,2]
[394862646,1764025954175,-10000.01,0.000151,2]
[394862647,1764025954325,-10000.01,0.000151,2]
[394862648,1764025954453,-10000.01,0.000151,2]
[394862649,1764025954563,-10000.01,0.000151,2]
[394862650,1764025954689,-10000.01,0.000151,2]
[394862651,1764025954815,-10000.01,0.000151,2]
[394862652,1764025954937,-10000.01,0.000151,2]
[394862663,1764025987700,476.029419,7.945e-05,2]
[394862669,1764025990701,444.0344,0.00014698,2]
[394862716,1764026048340,4241.436387,7.945e-05,2]
[394862740,1764026093771,-155.31607679,0.00015,2]
[394862741,1764026093793,-5632.0949,0.00015,2]
[394862742,1764026093816,-1000.0,0.00015,2]
[394862756,1764026489215,-170.47365486,0.000149,2]
[394862758,1764026580439,-1200.0,0.00014999,2]
[394862759,1764026580469,-300.0,0.00014999,2]
[394862760,1764026580500,-300.0,0.00014999,2]
[394862761,1764026580530,-300.0,0.00014999,2]
[394862762,1764026580560,-1200.0,0.00014999,2]
[394862763,1764026580593,-175.80475927,0.00015,2]
[394862764,1764026580623,-548.40048146,0.00015,2]
[394862765,1764026587006,-1951.59951854,0.00015,2]
[394862766,1764026587039,-170.47365486,0.00015,2]
[394862767,1764026587070,-160.33632139,0.00015,2]
[394862768,1764026587102,-2386.2631796,0.00015,2]
[394862769,1764026587131,-162.66465122,0.00015073,2]
[394862772,1764026592392,-337.33534878,0.00015073,2]
[394862773,1764026592421,-501.01450029,0.00015073,2]
[394862774,1764026592450,-500.0,0.00015073,2]
[394862775,1764026592479,-500.0,0.00015073,2]
[394862776,1764026592507,-500.0,0.00015073,2]
[394862777,1764026592536,-151.0,0.00015091,2]
[394862778,1764026592566,-151.0,0.00015091,2]
[394862779,1764026592596,-151.0,0.00015091,2]
[394862780,1764026592625,-151.0,0.00015091,2]
[394862781,1764026592653,-151.0,0.00015091,2]
[394862782,1764026592682,-151.0,0.00015091,2]
[394862783,1764026592711,-151.0,0.00015091,2]
[394862784,1764026592741,-151.0,0.00015091,2]
[394862785,1764026592771,-171.71735905,0.00015091,2]
[394862786,1764026592801,-250.0,0.00015098,2]
[394862787,1764026592831,-500.0,0.00015099,2]
[394862788,1764026592860,-501.51391161,0.00015099,2]
[394862791,1764026652246,200.51229195,0.00014655,2]
[394862801,1764026732447,-1200.0,0.00014999,2]
[394862802,1764026732644,-3435.6324,0.00015,2]
[394862803,1764026735301,-728.7452,0.00015,2]
[394862804,1764026735335,-153.82916436,0.00015,2]
[394862805,1764026735371,-160.33632137,0.00015,2]
[394862806,1764026735404,-300.0,0.00015098,2]
[394862807,1764026735437,-601.70480856,0.00015099,2]
[394862808,1764026735476,-500.0,0.00015099,2]
[394862809,1764026735515,-158.41499256,0.00015099,2]
[394862810,1764026735554,-500.0,0.00015099,2]
[394862811,1764026735592,-500.0,0.00015099,2]
[394862812,1764026735630,-500.0,0.00015099,2]
[394862813,1764026735669,-500.0,0.00015099,2]
[394862814,1764026735706,-293.9490263,0.00015099,2]
[394862815,1764026741454,-206.0509737,0.00015099,2]
[394862816,1764026741491,-500.0,0.00015099,2]
[394862817,1764026741529,-500.0,0.00015099,2]
[394862818,1764026741561,-189.07204576,0.00015099,2]
[394862819,1764026741747,-2500.0,0.00015,2]
[394862820,1764026741757,-2702.19079481,0.000151,2]
[394862822,1764026775041,-190.92037086,0.00015,2]
[394862823,1764026775085,-9618.16925828,0.000151,2]
[394862824,1764026775212,-10000.01,0.000151,2]
[394862825,1764026777918,-477.88929844,0.00015099,2]
[394862826,1764026777971,-9044.23140312,0.000151,2]
[394862837,1764026872384,-10000.01,0.000151,2]
[394862838,1764026878329,-10000.01,0.00015,2]
[394862846,1764026902593,8928.93541105,0.00015,4]
[394862851,1764026911935,-10000.01,0.00015,2]
[394862852,1764026912223,-10000.01,0.00015,2]
[394862853,1764026912372,-177.71813647,0.00014999,2]
[394862854,1764026912411,-500.0,0.00014999,2]
[394862855,1764026912455,-374.35077494,0.00014999,2]
[394862856,1764026912494,-500.0,0.00014999,2]
[394862857,1764026912735,-346.29459538,0.00014999,2]
[394862858,1764026912746,-6549.5775818,0.00015,2]
[394862859,1764026913264,-500.0,0.00014999,2]
[394862860,1764026913304,-500.0,0.00014999,2]
[394862861,1764026913349,-500.0,0.00014999,2]
[394862862,1764026913389,-472.9368995,0.00014999,2]
[394862863,1764026913508,-6054.136201,0.00015,2]
[394862864,1764026913529,-10000.01,0.00015,2]
[394862865,1764026913559,-10000.01,0.00015,2]
[394862866,1764026913691,-10000.01,0.00015,2]
[394862867,1764026913831,-10000.01,0.00015,2]
[394862868,1764026913968,-10000.01,0.00015,2]
[394862870,1764026917828,-10000.01,0.00015,2]
[394862884,1764027031363,-680.081712,0.00014824,2]
[394862886,1764027031374,-121.71244219,0.00014899,2]
[394862889,1764027031385,-724.28755781,0.00014899,2]
[394862890,1764027031394,-2503.19903623,0.000149,2]
[394862891,1764027031402,-175.11421792,0.000149,2]
[394862892,1764027031411,-157.74889266,0.000149,2]
[394862893,1764027031420,-166.66,0.00014958,2]
[394862894,1764027031429,-462.04611028,0.00014999,2]
[394862895,1764027031438,-336547.42491811,0.00015,2]
[394862896,1764027031449,-19755.7089561,0.00015,2]
[394862897,1764027031460,-37720.45299758,0.00015,2]
[394862898,1764027031470,-497.76627144,0.00015,2]
[394862899,1764027031484,-5357.3648153,0.00015,2]
[394862900,1764027031579,-4070.3640288,0.00015,2]
[394862901,1764027031590,-15045.44,0.00015,2]
[394862902,1764027031600,-708.63246524,0.00015,2]
[394862909,1764027037426,-754.03002222,0.00015,2]
[394862910,1764027037521,-236939.01174241,0.00015,2]
[394862911,1764027037530,-158828.64624449,0.00015,4]
[394862912,1764027037539,-2500.0,0.00015,2]
[394862913,1764027037548,-864.62593447,0.00015,2]
[394862914,1764027037556,-1000.0,0.00015,2]
[394862915,1764027037566,-1000.0,0.000151,2]
[394862916,1764027037575,-166.66,0.00015273,2]
[394862917,1764027037587,-40656.59066406,0.00015372,2]
[394862920,1764027039396,-59266.97933594,0.00015372,2]
[394862921,1764027039406,-4727.13260839,0.000154,2]
[394862922,1764027039416,-5550.37,0.00015407,2]
[394862923,1764027039426,-166.66,0.00015588,2]
[394862924,1764027039436,-1328.57128926,0.00015807,2]
[394862925,1764027039446,-150.0,0.00015887,2]
[394862926,1764027039455,-166.66,0.00015903,2]
[394862927,1764027039464,-500.0,0.00016173,2]
[394862928,1764027039473,-500.0,0.00016173,2]
[394862929,1764027039483,-500.0,0.00016173,2]
[394862930,1764027039492,-500.0,0.00016173,2]
[394862931,1764027039501,-14601.68672681,0.0001618,2]
[394862932,1764027039511,-166.66,0.00016218,2]
[394862933,1764027039520,-95.97940153,0.00016402,2]
[394862934,1764027039531,-154.02059847,0.00016402,2]
[394862935,1764027039541,-250.0,0.00016416,2]
[394862936,1764027039550,-285.71622737,0.00016438,2]
[394862937,1764027039560,-15.35319736,0.00016438,2]
[394862938,1764027039572,-484.64680264,0.00016438,2]
[394862939,1764027039582,-204.47108374,0.00016438,2]
[394862940,1764027039592,-163.75,0.0001644,2]
[394862941,1764027039601,-250.0,0.00016499,2]
[394862942,1764027039611,-250.0,0.000165,2]
[394862943,1764027039620,-206.12226012,0.000165,2]
[394862944,1764027039635,-93.87773988,0.000165,2]
[394862945,1764027039644,-300.0,0.000165,2]
[394862946,1764027039654,-166.66,0.00016533,2]
[394862947,1764027039663,-169.46226012,0.0001661,2]
[394862948,1764027039673,-247.17323636,0.0001661,2]
[394862949,1764027039682,-150.0,0.00016615,2]
[394862950,1764027039691,-98.51396175,0.00016712,2]
[394862951,1764027039702,-92.50603825,0.00016712,2]
[394862952,1764027039712,-500.0,0.00016721,2]
[394862953,1764027039720,-500.0,0.00016721,2]
[394862954,1764027039730,-250.0,0.00017,2]
[394862955,1764027039739,-254900.60871439,0.00017,2]
[394862956,1764027039747,-343.0,0.00017044,2]
[394862957,1764027039756,-343.0,0.00017081,2]
[394862958,1764027039765,-343.0,0.00017082,2]
[394862959,1764027039774,-343.0,0.00017148,2]
[394862960,1764027039783,-343.0,0.00017264,2]
[394862962,1764027039792,-343.0,0.00017356,2]
[394862964,1764027039801,-343.0,0.00017408,2]
[394862965,1764027039810,-343.0,0.00017443,2]
[394862966,1764027039820,-343.0,0.00017633,2]
[394862967,1764027039829,-343.0,0.00017654,2]
[394862968,1764027039838,-343.0,0.00017667,2]
[394862969,1764027039847,-343.0,0.00017824,2]
[394862970,1764027039856,-343.0,0.00017826,2]
[394862971,1764027039865,-343.0,0.00017848,2]
[394862972,1764027039874,-2503.19903622,0.000179,2]
[394862973,1764027039883,-343.0,0.0001791,2]
[394862974,1764027039892,-175.11421792,0.00017978,2]
[394862975,1764027039901,-424626.83430385,0.00018,2]
[394862976,1764027039912,-1869.61337053,0.00018,2]
[394862977,1764027039922,-351.2590328,0.00018,2]
[394862978,1764027039933,-3894.27687116,0.00018,2]
[394862981,1764027040108,-44358.79986902,0.00018,2]
[394862982,1764027040122,-16921.2528196,0.00018,2]
[394862983,1764027040133,-544.90783643,0.00018,2]
[394862991,1764027043421,-1500.0,0.00018,2]
[394862992,1764027043432,-895.69918963,0.00018,2]
[394862994,1764027043443,-880.21996216,0.00018,2]
[394862997,1764027043456,-3898.79456686,0.00018,2]
[394862999,1764027043534,-49723.06167464,0.00018,2]
[394863000,1764027043545,-337.27249606,0.00018,2]
[394863001,1764027044477,-1015.95344153,0.00018,2]
[394863002,1764027044489,-1101.40168,0.00018,2]
[394863003,1764027044501,-38341.46863213,0.00018,2]
[394863004,1764027044512,-32963.92828388,0.00018,2]
[394863005,1764027044524,-412.05845751,0.00018,2]
[394863006,1764027044602,-500.0,0.00018,2]
[394863011,1764027045850,-894.81483,0.00018,2]
[394863012,1764027045862,-431.69864103,0.00018,2]
[394863014,1764027045873,-3534.9999997,0.00018,2]
[394863040,1764027372349,158.55,0.00019178,30]
[394863049,1764027453609,-178.81358798,0.00014899,2]
[394863050,1764027453641,-2500.0,0.000149,2]
[394863051,1764027453675,-1200.0,0.00014998,2]
[394863052,1764027453707,-300.0,0.00014998,2]
[394863053,1764027453742,-500.0,0.00014999,2]
[394863054,1764027453772,-236.61789453,0.00014999,2]
[394863055,1764027453899,-169.14703498,0.00014999,2]
[394863056,1764027459688,-151.0,0.00014991,2]
[394863057,1764027459722,-330.85296502,0.00014999,2]
[394863058,1764027459757,-500.0,0.00014999,2]
[394863059,1764027459791,-500.0,0.00014999,2]
[394863060,1764027459825,-439.50372117,0.00014999,2]
[394863061,1764027459855,-150.0,0.00014999,2]
[394863062,1764027459884,-1000.0,0.00015,2]
[394863063,1764027460013,-3857.29662762,0.00015,2]
[394863095,1764027660578,-1000.0,0.000149,2]
[394863096,1764027660609,-2500.0,0.000149,2]
[394863097,1764027694024,2440.534,0.000147,2]
[394863098,1764027694065,184.05,0.000147,2]
[394863099,1764027719538,262.0,0.000149,2]
[394863100,1764027737968,2500.0,0.000149,2]
[394863101,1764027771390,-500.0,0.00014973,2]
[394863102,1764027771429,-500.0,0.00014973,2]
[394863103,1764027771467,-500.0,0.00014973,2]
[394863104,1764027771505,-203.77090285,0.00014991,2]
[394863105,1764027771547,-500.0,0.00014991,2]
[394863106,1764027771586,-500.0,0.00014991,2]
[394863107,1764027771626,-500.0,0.00014991,2]
[394863108,1764027771666,-500.0,0.00014991,2]
[394863109,1764027771703,-500.0,0.00014991,2]
[394863110,1764027771743,-500.0,0.00014991,2]
[394863111,1764027771781,-500.0,0.00014991,2]
[394863112,1764027771819,-180.0,0.00014998,2]
[394863113,1764027771856,-864.62593447,0.00014999,2]
[394863114,1764027771896,-150.0,0.00014999,2]
[394863115,1764027771942,-756142.70337238,0.00015,2]
[394863139,1764027839171,10000.01,0.000149,2]
[394863140,1764027839196,4334.2863,0.000149,2]
[394863144,1764027871654,5665.7237,0.000149,2]
[394863145,1764027871685,10000.01,0.000149,2]
[394863146,1764027871730,10000.01,0.000149,2]
[394863147,1764027871769,10000.01,0.000149,2]
[394863148,1764027871803,10000.01,0.000149,2]
[394863149,1764027871836,10000.01,0.000149,2]
[394863150,1764027871877,10000.01,0.000149,2]
[394863151,1764027871910,10000.01,0.000149,2]
[394863152,1764027871948,10000.01,0.000149,2]
[394863153,1764027871980,10000.01,0.000149,2]
[394863283,1764027996729,582.11,0.00013699,2]
[394863332,1764028108759,2618.91,8.138e-05,2]
[394863333,1764028108970,2618.91,8.566e-05,2]
[394863334,1764028109177,2618.91,8.995e-05,2]
[394863335,1764028109438,1561.17,9.423e-05,2]
[394863336,1764028109464,1057.74,9.423e-05,2]
[394863337,1764028109647,2618.91,9.851e-05,2]
[394863338,1764028109868,2618.91,0.0001028,2]
[394863339,1764028110081,2618.91,0.00010708,2]
[394863340,1764028110305,1085.54,0.00011136,2]
[394863341,1764028110330,1533.37,0.00011136,2]
[394863342,1764028110725,2618.91,0.00011565,2]
[394863343,1764028110934,2618.91,0.00011993,2]
[394863344,1764028111160,2618.91,0.00012421,2]
[394863345,1764028111361,609.91,0.0001285,2]
[394863346,1764028111387,2009.0,0.0001285,2]
[394863347,1764028111574,2618.91,0.00013278,2]
[394863348,1764028111810,2618.91,0.00013706,2]
[394863349,1764028112005,2618.91,0.00014135,2]
[394863350,1764028112219,134.28,0.00014563,2]
[394863351,1764028112245,2484.63,0.00014563,2]
[394863393,1764028170550,500.0,0.000147,2]
[394863400,1764028196322,-300.0,0.00014799,2]
[394863401,1764028196347,-300.0,0.000148,2]
[394863402,1764028196374,-195.0,0.000148,2]
[394863403,1764028196400,-164.32359263,0.000148,2]
[394863404,1764028196427,-2579.40409667,0.000148,2]
[394863405,1764028196451,-901.16627429,0.000148,2]
[394863406,1764028196477,-150.0,0.00014898,2]
[394863407,1764028196501,-931.22457307,0.00014899,2]
[394863408,1764028196526,-1200.0,0.00014899,2]
[394863409,1764028196552,-500.0,0.00014899,2]
[394863410,1764028196577,-500.0,0.00014899,2]
[394863411,1764028196602,-500.0,0.00014899,2]
[394863412,1764028196628,-500.0,0.00014899,2]
[394863413,1764028196653,-500.0,0.00014899,2]
[394863414,1764028196679,-355.04127024,0.00014899,2]
[394863415,1764028196710,-487523.8401931,0.000149,2]
[394863430,1764028231926,-155.621586,0.000148,2]
[394863432,1764028231936,-1199.77358944,0.000149,2]
[394863435,1764028231948,-60527.77254174,0.000149,2]
[394863437,1764028231958,-1403.84725605,0.000149,2]
[394863439,1764028231969,-634.47129063,0.000149,2]
[394863441,1764028231981,-1848.75756851,0.000149,2]
[394863444,1764028231991,-5345.03736345,0.000149,2]
[394863446,1764028232001,-1599.22750367,0.000149,2]
[394863448,1764028232015,-8067.61531646,0.000149,2]
[394863451,1764028232025,-1568.73689047,0.000149,2]
[394863454,1764028232035,-953.31026791,0.000149,2]
[394863458,1764028232047,-310.31,0.000149,2]
[394863474,1764028237660,-93351.48651857,0.000149,2]
[394863475,1764028237670,-2500.0,0.000149,2]
[394863476,1764028237680,-1000.0,0.000149,2]
[394863477,1764028237689,-223.27361482,0.0001498,2]
[394863478,1764028237699,-2618.91,0.00014991,2]
[394863479,1764028237708,-500.0,0.00014999,2]
[394863480,1764028237718,-223.27361481,0.00015377,2]
[394863481,1764028237727,-2618.91,0.0001542,2]
[394863482,1764028237736,-2618.91,0.00015848,2]
[394863483,1764028237745,-223.27361481,0.00015873,2]
[394863484,1764028237756,-1367.3056332,0.000159,2]
[394863485,1764028237767,-1367.30563315,0.000159,2]
[394863486,1764028237778,-1367.30563315,0.000159,2]
[394863487,1764028237788,-1367.30563315,0.000159,2]
[394863488,1764028237796,-1367.30563315,0.000159,2]
[394863490,1764028237806,-1367.30563315,0.000159,2]
[394863491,1764028237814,-344.29,0.00016265,2]
[394863493,1764028237823,-2618.91,0.00016276,2]
[394863495,1764028237832,-250.0,0.00016279,2]
[394863496,1764028237841,-300.0,0.00016279,2]
[394863497,1764028237852,-195.0,0.00016279,2]
[394863498,1764028237861,-7127.48,0.00016381,2]
[394863499,1764028237870,-250.0,0.0001639,2]
[394863500,1764028237879,-195.0,0.0001639,2]
[394863501,1764028237888,-2861.6,0.00016438,2]
[394863502,1764028237898,-207.56,0.00016468,2]
[394863503,1764028237907,-5028.67,0.00016488,2]
[394863504,1764028237917,-322.28095059,0.00016513,2]
[394863505,1764028237926,-172.0,0.00016513,2]
[394863506,1764028237936,-199.07,0.00016519,2]
[394863507,1764028237946,-610.0,0.00016563,2]
[394863508,1764028237957,-999.0,0.00016795,3]
[394863509,1764028237966,-151.0,0.00016978,2]
[394863510,1764028237975,-151.0,0.00016978,2]
[394863511,1764028237984,-169.62588192,0.00016978,2]
[394863512,1764028237996,-500.0,0.00016978,2]
[394863513,1764028238006,-18169.99,0.00016988,2]
[394863514,1764028238015,-166.66,0.00016993,2]
[394863515,1764028238025,-1000.0,0.00017026,2]
[394863516,1764028238035,-398.43,0.00017078,2]
[394863517,1764028238044,-11852.25,0.00017183,2]
[394863518,1764028238054,-166.66,0.00017554,2]
[394863519,1764028238064,-5000.0,0.00017608,2]
[394863520,1764028238073,-8916.1510979,0.00017708,2]
[394863521,1764028238083,-493.0,0.00017712,2]
[394863522,1764028238092,-189.41346353,0.00017748,2]
[394863523,1764028238102,-2579.40409666,0.00017812,2]
[394863524,1764028238112,-300.0,0.00017943,2]
[394863525,1764028238121,-500.0,0.00017973,2]
[394863526,1764028238130,-590.90994192,0.00017973,2]
[394863527,1764028238139,-323.86150375,0.00017973,2]
[394863528,1764028238148,-500.0,0.00017973,2]
[394863529,1764028238157,-165.76876388,0.00017978,2]
[394863530,1764028238167,-500.0,0.00017999,2]
[394863531,1764028238176,-500.0,0.00017999,2]
[394863532,1764028238186,-235.7593192,0.00017999,2]
[394863533,1764028238195,-500.0,0.00017999,2]
[394863534,1764028238204,-500.0,0.00017999,2]
[394863535,1764028238214,-615.9526452,0.00017999,2]
[394863536,1764028238223,-500.0,0.00017999,2]
[394863537,1764028238232,-500.0,0.00017999,2]
[394863538,1764028238241,-500.0,0.00017999,2]
[394863539,1764028238251,-500.0,0.00017999,2]
[394863540,1764028238260,-500.0,0.00017999,2]
[394863541,1764028238269,-500.0,0.00017999,2]
[394863542,1764028238278,-500.0,0.00017999,2]
[394863543,1764028238288,-500.0,0.00017999,2]
[394863544,1764028238297,-465.79407674,0.00017999,2]
[394863545,1764028238306,-425818.13578648,0.00018,2]
[394863546,1764028238555,-518.98264,0.00018,2]
[394863548,1764028239724,197.26,0.00012894,2]
[394863549,1764028239762,-223.27361481,0.0001637,2]
[394863550,1764028239772,-213.42874948,0.000179,2]
[394863551,1764028239782,-467411.29828039,0.00018,2]
[394863567,1764028245874,-4427.75,0.00018,2]
[394863570,1764028246117,-2124.768,0.00018,2]
[394863714,1764028422023,-300.0,0.00014799,2]
[394863715,1764028422057,-500.0,0.000148,2]
[394863738,1764028470627,-9831.546,0.000148,2]
[394863743,1764028476791,-500.0,0.00014799,2]
[394863744,1764028476824,-513.28977909,0.00014799,2]
[394863745,1764028476859,-500.0,0.00014799,2]
[394863746,1764028476890,-414.48724712,0.00014799,2]
[394863747,1764028476921,-500.0,0.00014799,2]
[394863748,1764028476952,-500.0,0.00014799,2]
[394863749,1764028476983,-500.0,0.00014799,2]
[394863750,1764028477015,-500.0,0.00014799,2]
[394863751,1764028477045,-464.90038779,0.00014799,2]
[394863752,1764028477077,-500.0,0.00014799,2]
[394863753,1764028477272,-214.655172,0.00014799,2]
[394863756,1764028480120,-285.344828,0.00014799,2]
[394863757,1764028480153,-317.22680781,0.00014799,2]
[394863758,1764028480188,-500.04179467,0.00014799,2]
[394863759,1764028480220,-500.0,0.00014799,2]
[394863760,1764028480252,-500.0,0.00014799,2]
[394863761,1764028480288,-500.04179467,0.00014799,2]
[394863762,1764028480324,-500.04179467,0.00014799,2]
[394863763,1764028480357,-500.0,0.00014799,2]
[394863765,1764028480392,-500.0,0.00014799,2]
[394863767,1764028480429,-500.04179467,0.00014799,2]
[394863768,1764028480460,-168.96093236,0.00014799,2]
[394863769,1764028480491,-156.95186815,0.00014799,2]
[394863770,1764028480714,-142.70677,0.00014799,2]
[394863780,1764028493926,154.31492055,0.000147,2]
[394863783,1764028504437,2732.24126752,0.000147,2]
[394863787,1764028534337,1000.0,0.000147,2]
[394863788,1764028552201,469.58815303,0.000147,2]
[394863789,1764028555696,625.21960734,0.000147,2]
[394863819,1764028597634,406.36826515,0.000147,2]
[394863820,1764028670985,879.58024492,0.000147,2]
[394863821,1764028692389,862.01919163,0.000147,2]
[394863822,1764028713613,-568.0,0.00014798,2]
[394863823,1764028713644,-195.0,0.00014799,2]
[394863824,1764028713679,-357.33502467,0.00014799,2]
[394863825,1764028713714,-500.04179467,0.00014799,2]
[394863826,1764028713751,-500.04179467,0.00014799,2]
[394863827,1764028713792,-500.04179467,0.00014799,2]
[394863828,1764028713827,-500.04179467,0.00014799,2]
[394863829,1764028713864,-500.04179467,0.00014799,2]
[394863830,1764028713899,-500.04179467,0.00014799,2]
[394863831,1764028713939,-500.04179467,0.00014799,2]
[394863832,1764028713974,-258.71303061,0.00014799,2]
[394863833,1764028714210,-241.32876406,0.00014799,2]
[394863834,1764028714246,-500.04179467,0.00014799,2]
[394863835,1764028714287,-500.04179467,0.00014799,2]
[394863836,1764028714322,-500.04179467,0.00014799,2]
[394863837,1764028714357,-500.04179467,0.00014799,2]
[394863838,1764028714391,-500.04179467,0.00014799,2]
[394863839,1764028714427,-500.04179467,0.00014799,2]
[394863840,1764028714468,-500.04179467,0.00014799,2]
[394863841,1764028714504,-500.04179467,0.00014799,2]
[394863842,1764028714539,-500.04179467,0.00014799,2]
[394863843,1764028714577,-16.55837315,0.00014799,2]
[394863844,1764028714731,-483.48342152,0.00014799,2]
[394863845,1764028714766,-500.04179467,0.00014799,2]
[394863846,1764028714806,-500.04179467,0.00014799,2]
[394863847,1764028714847,-500.04179467,0.00014799,2]
[394863848,1764028714883,-500.04179467,0.00014799,2]
[394863849,1764028714921,-500.04179467,0.00014799,2]
[394863850,1764028714957,-500.04179467,0.00014799,2]
[394863851,1764028714992,-500.04179467,0.00014799,2]
[394863852,1764028715029,-500.04179467,0.00014799,2]
[394863853,1764028715067,-500.04179467,0.00014799,2]
[394863854,1764028717459,-500.04179467,0.00014799,2]
[394863855,1764028717495,-500.04179467,0.00014799,2]
[394863856,1764028717530,-500.04179467,0.00014799,2]
[394863857,1764028717564,-500.04179467,0.00014799,2]
[394863858,1764028717600,-500.04179467,0.00014799,2]
[394863859,1764028717648,-500.04179467,0.00014799,2]
[394863860,1764028717688,-500.04179467,0.00014799,2]
[394863861,1764028717726,-500.04179467,0.00014799,2]
[394863862,1764028717761,-500.04179467,0.00014799,2]
[394863863,1764028717798,-499.21590127,0.00014799,2]
[394863864,1764028717944,-0.8258934,0.00014799,2]
[394863865,1764028717980,-500.04179467,0.00014799,2]
[394863866,1764028718014,-500.04179467,0.00014799,2]
[394863867,1764028718049,-500.04179467,0.00014799,2]
[394863868,1764028718084,-500.04179467,0.00014799,2]
[394863869,1764028718119,-500.04179467,0.00014799,2]
[394863870,1764028718155,-500.04179467,0.00014799,2]
[394863871,1764028718190,-500.04179467,0.00014799,2]
[394863872,1764028718225,-500.04179467,0.00014799,2]
[394863873,1764028718262,-500.04179467,0.00014799,2]